[Event "Early-Titled-Tuesday-Blitz-October-24-2023"]
[Site "Chess.com"]
[Date "2023.10.24"]
[Round "1"]
[White "vovachesss"]
[Black "esrosenberg"]
[Result "0-1"]
[WhiteElo "2783"]
[BlackElo "2452"]
[TimeControl "180+1"]
[EndTime "8:07:40 PDT"]
[Termination "esrosenberg won on time"]

1. e4 {[%clk 0:00:22.9]} 1... e5 {[%clk 0:02:59]} 2. Nf3 {[%clk 0:00:22.8]} 2...
Nc6 {[%clk 0:02:58.4]} 3. Nc3 {[%clk 0:00:23.4]} 3... Nf6 {[%clk 0:02:58.4]} 4.
d4 {[%clk 0:00:23.7]} 4... exd4 {[%clk 0:02:58.5]} 5. Nxd4 {[%clk 0:00:24.6]}
5... Bb4 {[%clk 0:02:58.4]} 6. Nxc6 {[%clk 0:00:25.2]} 6... bxc6 {[%clk
0:02:58.9]} 7. Bd3 {[%clk 0:00:26]} 7... d5 {[%clk 0:02:55.7]} 8. exd5 {[%clk
0:00:26.9]} 8... O-O {[%clk 0:02:52.1]} 9. O-O {[%clk 0:00:27.4]} 9... cxd5
{[%clk 0:02:52.8]} 10. h3 {[%clk 0:00:27.7]} 10... c6 {[%clk 0:02:49.5]} 11. Qf3
{[%clk 0:00:28.3]} 11... Rb8 {[%clk 0:02:40.3]} 12. Bf4 {[%clk 0:00:28.6]} 12...
Bd6 {[%clk 0:02:37.4]} 13. b3 {[%clk 0:00:29.1]} 13... Rb4 {[%clk 0:02:17.6]}
14. Ne2 {[%clk 0:00:29.4]} 14... Re8 {[%clk 0:02:13.4]} 15. Rad1 {[%clk
0:00:27.1]} 15... Ne4 {[%clk 0:02:04.2]} 16. c4 {[%clk 0:00:19.8]} 16... Nc5
{[%clk 0:01:19.5]} 17. Bc2 {[%clk 0:00:13.1]} 17... Be6 {[%clk 0:00:55.7]} 18.
Bxd6 {[%clk 0:00:13]} 18... Qxd6 {[%clk 0:00:55.7]} 19. Nc3 {[%clk 0:00:10.3]}
19... Rd8 {[%clk 0:00:34.4]} 20. Rfe1 {[%clk 0:00:10.5]} 20... Rbb8 {[%clk
0:00:30.9]} 21. Qh5 {[%clk 0:00:08]} 21... g6 {[%clk 0:00:30.5]} 22. Qh6 {[%clk
0:00:07.5]} 22... Qf8 {[%clk 0:00:30]} 23. Qe3 {[%clk 0:00:07.2]} 23... Na6
{[%clk 0:00:26.9]} 24. cxd5 {[%clk 0:00:06.5]} 24... cxd5 {[%clk 0:00:27.1]} 25.
Bb1 {[%clk 0:00:05.2]} 25... Rb7 {[%clk 0:00:23.2]} 26. Ne2 {[%clk 0:00:05.8]}
26... Nb4 {[%clk 0:00:19]} 27. Nd4 {[%clk 0:00:06.7]} 27... Re8 {[%clk
0:00:15.1]} 28. Qf4 {[%clk 0:00:06.3]} 28... Rb6 {[%clk 0:00:13.7]} 29. Re3
{[%clk 0:00:06.4]} 29... Nc6 {[%clk 0:00:13.8]} 30. Rde1 {[%clk 0:00:06.2]}
30... Nxd4 {[%clk 0:00:12.7]} 31. Qxd4 {[%clk 0:00:07.1]} 31... Qb4 {[%clk
0:00:12]} 32. Qf6 {[%clk 0:00:05.7]} 32... Qe7 {[%clk 0:00:11.7]} 33. Qf4 {[%clk
0:00:05.4]} 33... a5 {[%clk 0:00:10.6]} 34. h4 {[%clk 0:00:05.5]} 34... Rb4
{[%clk 0:00:10.6]} 35. Qg5 {[%clk 0:00:03.7]} 35... Rxh4 {[%clk 0:00:09.7]} 36.
Qxd5 {[%clk 0:00:03.3]} 36... Bxd5 {[%clk 0:00:07]} 37. Rxe7 {[%clk 0:00:03.8]}
37... Rxe7 {[%clk 0:00:07]} 38. Rxe7 {[%clk 0:00:04.7]} 38... Rd4 {[%clk
0:00:06.1]} 39. Re1 {[%clk 0:00:04.3]} 39... f5 {[%clk 0:00:05.3]} 40. f3 {[%clk
0:00:04.8]} 40... Kf7 {[%clk 0:00:05.2]} 41. Kf2 {[%clk 0:00:05.3]} 41... Rd2+
{[%clk 0:00:04.9]} 42. Re2 {[%clk 0:00:05.8]} 42... Rxe2+ {[%clk 0:00:05]} 43.
Kxe2 {[%clk 0:00:06.7]} 43... Ke6 {[%clk 0:00:04.3]} 0-1

[Event "Early-Titled-Tuesday-Blitz-October-24-2023"]
[Site "Chess.com"]
[Date "2023.10.24"]
[Round "1"]
[White "PLAYER_2006_M"]
[Black "Haykoooo0o"]
[Result "0-1"]
[WhiteElo "2837"]
[BlackElo "2483"]
[TimeControl "180+1"]
[EndTime "8:07:41 PDT"]
[Termination "Haykoooo0o won by checkmate"]

1. d4 {[%clk 0:02:56.4]} 1... Nf6 {[%clk 0:02:57.5]} 2. Nc3 {[%clk 0:02:55.1]}
2... d5 {[%clk 0:02:48.9]} 3. Bf4 {[%clk 0:02:54.9]} 3... c6 {[%clk 0:02:47.4]}
4. e3 {[%clk 0:02:54.3]} 4... Bf5 {[%clk 0:02:44.8]} 5. f3 {[%clk 0:02:54]} 5...
Bg6 {[%clk 0:02:42.6]} 6. g4 {[%clk 0:02:53]} 6... e6 {[%clk 0:02:41.4]} 7. h4
{[%clk 0:02:53.4]} 7... h5 {[%clk 0:02:40.9]} 8. g5 {[%clk 0:02:53.6]} 8... Ng8
{[%clk 0:02:39.3]} 9. Nge2 {[%clk 0:02:44.6]} 9... Bd6 {[%clk 0:02:37.5]} 10.
Qd2 {[%clk 0:02:40.3]} 10... Ne7 {[%clk 0:02:33.2]} 11. O-O-O {[%clk 0:02:39.6]}
11... b5 {[%clk 0:02:27.6]} 12. Bxd6 {[%clk 0:02:35]} 12... Qxd6 {[%clk
0:02:26.9]} 13. Nf4 {[%clk 0:02:35.9]} 13... a5 {[%clk 0:02:23.5]} 14. e4 {[%clk
0:02:34.5]} 14... a4 {[%clk 0:02:21.5]} 15. exd5 {[%clk 0:02:23]} 15... exd5
{[%clk 0:02:14.8]} 16. Re1 {[%clk 0:02:20.3]} 16... O-O {[%clk 0:02:09.7]} 17.
Bd3 {[%clk 0:02:01.2]} 17... b4 {[%clk 0:02:01.6]} 18. Nce2 {[%clk 0:01:58.8]}
18... b3 {[%clk 0:01:58.5]} 19. a3 {[%clk 0:01:58.3]} 19... bxc2 {[%clk
0:01:57]} 20. Nc3 {[%clk 0:01:44.7]} 20... Nd7 {[%clk 0:01:49.9]} 21. Re2 {[%clk
0:01:37]} 21... Nf5 {[%clk 0:01:45.2]} 22. Bxc2 {[%clk 0:01:25.4]} 22... Ng3
{[%clk 0:01:31.6]} 23. Rhe1 {[%clk 0:01:15.8]} 23... Nxe2+ {[%clk 0:01:30.5]}
24. Rxe2 {[%clk 0:01:10.4]} 24... Rae8 {[%clk 0:01:23.9]} 25. Bxa4 {[%clk
0:01:06.4]} 25... Rxe2 {[%clk 0:01:22.7]} 26. Ncxe2 {[%clk 0:01:06.6]} 26... Nb6
{[%clk 0:01:20.6]} 27. Bb3 {[%clk 0:01:06.3]} 27... Nc4 {[%clk 0:01:19.5]} 28.
Bxc4 {[%clk 0:01:05.5]} 28... dxc4 {[%clk 0:01:20.4]} 29. Qe3 {[%clk 0:01:06]}
29... Rb8 {[%clk 0:01:16.9]} 30. Nc3 {[%clk 0:01:02]} 30... Qd7 {[%clk
0:01:04.7]} 31. d5 {[%clk 0:00:49.5]} 31... cxd5 {[%clk 0:00:57.1]} 32. Ncxd5
{[%clk 0:00:48.6]} 32... Kh7 {[%clk 0:00:43]} 33. Qd4 {[%clk 0:00:46.7]} 33...
Qf5 {[%clk 0:00:38.8]} 34. Nxg6 {[%clk 0:00:43.8]} 34... fxg6 {[%clk 0:00:39.3]}
35. Nc3 {[%clk 0:00:39.2]} 35... Qxf3 {[%clk 0:00:36.8]} 36. Qxc4 {[%clk
0:00:38.8]} 36... Qh1+ {[%clk 0:00:33.3]} 37. Kc2 {[%clk 0:00:37.7]} 37... Qh2+
{[%clk 0:00:27.5]} 38. Ne2 {[%clk 0:00:37.9]} 38... Qh3 {[%clk 0:00:28.1]} 39.
a4 {[%clk 0:00:37.3]} 39... Rc8 {[%clk 0:00:27.7]} 40. Qxc8 {[%clk 0:00:37.1]}
40... Qxc8+ {[%clk 0:00:28.6]} 41. Nc3 {[%clk 0:00:37.8]} 41... Qf5+ {[%clk
0:00:27.6]} 42. Kb3 {[%clk 0:00:37.7]} 42... Qe6+ {[%clk 0:00:26.6]} 43. Kb4
{[%clk 0:00:36.7]} 43... Qd6+ {[%clk 0:00:23.8]} 44. Kc4 {[%clk 0:00:35.3]}
44... Qf4+ {[%clk 0:00:23.4]} 45. Kb5 {[%clk 0:00:35.5]} 45... Qxh4 {[%clk
0:00:23.9]} 46. a5 {[%clk 0:00:36]} 46... Qxg5+ {[%clk 0:00:24.5]} 47. Kc6
{[%clk 0:00:35.5]} 47... Qxa5 {[%clk 0:00:23.7]} 48. Nd5 {[%clk 0:00:35.4]}
48... h4 {[%clk 0:00:22.7]} 49. b4 {[%clk 0:00:35.7]} 49... Qa8+ {[%clk
0:00:22]} 50. Kd6 {[%clk 0:00:35.7]} 50... h3 {[%clk 0:00:22.5]} 51. b5 {[%clk
0:00:36.1]} 51... h2 {[%clk 0:00:22.7]} 52. Nc7 {[%clk 0:00:37]} 52... Qb7
{[%clk 0:00:22.2]} 53. Ne6 {[%clk 0:00:34.8]} 53... h1=Q {[%clk 0:00:22]} 54. b6
{[%clk 0:00:35.3]} 54... Qhc6+ {[%clk 0:00:21.1]} 55. Ke5 {[%clk 0:00:35.5]}
55... Qbxb6 {[%clk 0:00:20.6]} 56. Ng5+ {[%clk 0:00:36.4]} 56... Kh6 {[%clk
0:00:20.6]} 57. Nf7+ {[%clk 0:00:35.5]} 57... Kh5 {[%clk 0:00:21.2]} 58. Ng5
{[%clk 0:00:36]} 58... Qe3+ {[%clk 0:00:17.3]} 59. Ne4 {[%clk 0:00:35.9]} 59...
Qexe4# {[%clk 0:00:17.2]} 0-1

[Event "Early-Titled-Tuesday-Blitz-October-24-2023"]
[Site "Chess.com"]
[Date "2023.10.24"]
[Round "1"]
[White "CSB7"]
[Black "sebastianmarinp"]
[Result "1-0"]
[WhiteElo "2741"]
[BlackElo "2400"]
[TimeControl "180+1"]
[EndTime "8:07:41 PDT"]
[Termination "CSB7 won by resignation"]

1. e4 {[%clk 0:03:00.9]} 1... e6 {[%clk 0:02:59.8]} 2. d4 {[%clk 0:03:00.4]}
2... d5 {[%clk 0:03:00.1]} 3. Nd2 {[%clk 0:03:00.9]} 3... Nf6 {[%clk 0:02:58.3]}
4. e5 {[%clk 0:03:00.2]} 4... Nfd7 {[%clk 0:02:58.8]} 5. f4 {[%clk 0:02:57.1]}
5... c5 {[%clk 0:02:58.4]} 6. c3 {[%clk 0:02:57.8]} 6... Nc6 {[%clk 0:02:58.7]}
7. Ndf3 {[%clk 0:02:57.6]} 7... cxd4 {[%clk 0:02:54.6]} 8. cxd4 {[%clk
0:02:57.3]} 8... Bb4+ {[%clk 0:02:55]} 9. Bd2 {[%clk 0:02:57.2]} 9... Qb6 {[%clk
0:02:51]} 10. Bxb4 {[%clk 0:02:56.1]} 10... Qxb4+ {[%clk 0:02:51.9]} 11. Qd2
{[%clk 0:02:56.3]} 11... Nb6 {[%clk 0:02:45.1]} 12. Bd3 {[%clk 0:02:41.2]} 12...
Bd7 {[%clk 0:02:38]} 13. Ne2 {[%clk 0:02:40.1]} 13... Nc4 {[%clk 0:02:33.9]} 14.
Qxb4 {[%clk 0:02:06.2]} 14... Nxb4 {[%clk 0:02:33.5]} 15. Bb1 {[%clk 0:02:06.9]}
15... Nxb2 {[%clk 0:02:29.8]} 16. a3 {[%clk 0:01:54.6]} 16... Nc6 {[%clk
0:02:25.2]} 17. O-O {[%clk 0:01:45.4]} 17... Na5 {[%clk 0:02:23.8]} 18. f5
{[%clk 0:01:30.3]} 18... exf5 {[%clk 0:02:24.7]} 19. Nf4 {[%clk 0:01:29.2]}
19... Be6 {[%clk 0:02:24.7]} 20. Ng5 {[%clk 0:01:16.4]} 20... Ke7 {[%clk
0:02:24]} 21. g4 {[%clk 0:01:17.1]} 21... g6 {[%clk 0:02:06.1]} 22. h4 {[%clk
0:00:31.2]} 22... Nbc4 {[%clk 0:01:42.4]} 23. gxf5 {[%clk 0:00:30.1]} 23... gxf5
{[%clk 0:01:43]} 24. Bxf5 {[%clk 0:00:30.8]} 24... Ne3 {[%clk 0:01:28.5]} 25.
Bxe6 {[%clk 0:00:23.8]} 25... fxe6 {[%clk 0:01:06.9]} 26. Nfxe6 {[%clk
0:00:23.6]} 26... Nxf1 {[%clk 0:01:04.8]} 27. Rxf1 {[%clk 0:00:24.5]} 27... Raf8
{[%clk 0:00:53.6]} 28. Rxf8 {[%clk 0:00:23.7]} 28... Rxf8 {[%clk 0:00:54.5]} 29.
Nxf8 {[%clk 0:00:24.2]} 29... Kxf8 {[%clk 0:00:55.4]} 30. Nxh7+ {[%clk
0:00:24.6]} 30... Ke7 {[%clk 0:00:54.9]} 31. Nf6 {[%clk 0:00:22.3]} 31... Ke6
{[%clk 0:00:44.9]} 32. h5 {[%clk 0:00:22.7]} 32... Nc6 {[%clk 0:00:42.1]} 33. h6
{[%clk 0:00:16.3]} 33... Kf7 {[%clk 0:00:35.7]} 34. h7 {[%clk 0:00:08.5]} 34...
Kg7 {[%clk 0:00:35.5]} 35. e6 {[%clk 0:00:09]} 35... Ne7 {[%clk 0:00:27.6]} 36.
Kf2 {[%clk 0:00:05.3]} 36... b5 {[%clk 0:00:27.4]} 37. Ke2 {[%clk 0:00:05.1]}
37... a5 {[%clk 0:00:27.5]} 38. Kd3 {[%clk 0:00:05.4]} 38... Ng6 {[%clk
0:00:24.9]} 39. Nxd5 {[%clk 0:00:04]} 39... Kxh7 {[%clk 0:00:24]} 40. e7 {[%clk
0:00:04.5]} 40... Nxe7 {[%clk 0:00:21.2]} 41. Nxe7 {[%clk 0:00:05.4]} 41... b4
{[%clk 0:00:20.9]} 42. axb4 {[%clk 0:00:06.3]} 42... axb4 {[%clk 0:00:21.5]} 43.
Nc6 {[%clk 0:00:05.9]} 43... Kg7 {[%clk 0:00:22.4]} 44. Nxb4 {[%clk 0:00:05.7]}
44... Kf6 {[%clk 0:00:23.3]} 45. Ke4 {[%clk 0:00:06.6]} 45... Ke6 {[%clk
0:00:23.7]} 46. d5+ {[%clk 0:00:06.8]} 46... Kd6 {[%clk 0:00:24.6]} 47. Kd4
{[%clk 0:00:07.7]} 47... Kd7 {[%clk 0:00:24.9]} 48. Kc5 {[%clk 0:00:07.2]} 48...
Kc7 {[%clk 0:00:25.8]} 49. d6+ {[%clk 0:00:08.1]} 49... Kd7 {[%clk 0:00:26.3]}
50. Kd5 {[%clk 0:00:09]} 50... Kd8 {[%clk 0:00:26.6]} 51. Ke6 {[%clk 0:00:09.2]}
1-0

[Event "Early-Titled-Tuesday-Blitz-October-24-2023"]
[Site "Chess.com"]
[Date "2023.10.24"]
[Round "1"]
[White "leejunhyeok"]
[Black "ExcitingTrap"]
[Result "1-0"]
[WhiteElo "2664"]
[BlackElo "2347"]
[TimeControl "180+1"]
[EndTime "8:07:41 PDT"]
[Termination "leejunhyeok won on time"]

1. d4 {[%clk 0:03:00.9]} 1... Nf6 {[%clk 0:02:59.6]} 2. c4 {[%clk 0:03:00.7]}
2... e6 {[%clk 0:02:59.5]} 3. Nf3 {[%clk 0:03:00.7]} 3... d5 {[%clk 0:02:59.1]}
4. Nc3 {[%clk 0:03:00.4]} 4... c5 {[%clk 0:02:58.6]} 5. cxd5 {[%clk 0:03:00.2]}
5... Nxd5 {[%clk 0:02:57.5]} 6. e4 {[%clk 0:03:00.1]} 6... Nxc3 {[%clk 0:02:58]}
7. bxc3 {[%clk 0:03:00.9]} 7... cxd4 {[%clk 0:02:58.6]} 8. cxd4 {[%clk
0:03:01.8]} 8... Bb4+ {[%clk 0:02:58.9]} 9. Bd2 {[%clk 0:03:02.4]} 9... Bxd2+
{[%clk 0:02:59]} 10. Qxd2 {[%clk 0:03:03.3]} 10... O-O {[%clk 0:02:59.4]} 11.
Bc4 {[%clk 0:03:03.6]} 11... Nd7 {[%clk 0:02:59.4]} 12. O-O {[%clk 0:03:03.5]}
12... b6 {[%clk 0:02:59.8]} 13. Rad1 {[%clk 0:03:03.4]} 13... Bb7 {[%clk
0:02:59.3]} 14. Rfe1 {[%clk 0:03:03.6]} 14... Rc8 {[%clk 0:02:58.1]} 15. Bb3
{[%clk 0:03:03.3]} 15... h6 {[%clk 0:02:56.4]} 16. Re3 {[%clk 0:02:59.7]} 16...
Re8 {[%clk 0:02:54.3]} 17. Qe1 {[%clk 0:02:51.1]} 17... Qc7 {[%clk 0:02:51.5]}
18. h4 {[%clk 0:02:48.4]} 18... Qf4 {[%clk 0:02:42.3]} 19. g3 {[%clk 0:02:41.9]}
19... Qg4 {[%clk 0:02:40.8]} 20. d5 {[%clk 0:02:27.3]} 20... exd5 {[%clk
0:02:31.6]} 21. e5 {[%clk 0:02:25.6]} 21... Nc5 {[%clk 0:02:11]} 22. Nd4 {[%clk
0:01:41.8]} 22... Rcd8 {[%clk 0:01:25.8]} 23. f3 {[%clk 0:01:31.1]} 23... Qh3
{[%clk 0:01:05.5]} 24. Bc2 {[%clk 0:01:25.8]} 24... g6 {[%clk 0:00:57.6]} 25.
Rd2 {[%clk 0:01:14.6]} 25... Qd7 {[%clk 0:00:44.3]} 26. h5 {[%clk 0:01:12.5]}
26... Kg7 {[%clk 0:00:36]} 27. hxg6 {[%clk 0:01:03.5]} 27... fxg6 {[%clk
0:00:36.9]} 28. e6 {[%clk 0:00:56.5]} 28... Qe7 {[%clk 0:00:36.5]} 29. f4 {[%clk
0:00:36.9]} 29... Ne4 {[%clk 0:00:32.5]} 30. Bxe4 {[%clk 0:00:22.7]} 30... dxe4
{[%clk 0:00:33.4]} 31. Rc3 {[%clk 0:00:17.4]} 31... Kh8 {[%clk 0:00:16.1]} 32.
Qe3 {[%clk 0:00:16.4]} 32... Qf6 {[%clk 0:00:12]} 33. f5 {[%clk 0:00:15.4]}
33... gxf5 {[%clk 0:00:09.9]} 34. Rc7 {[%clk 0:00:15.5]} 34... Bd5 {[%clk
0:00:05.7]} 35. Nxf5 {[%clk 0:00:14.7]} 35... Bxe6 {[%clk 0:00:02.1]} 36. Rh2
{[%clk 0:00:07.1]} 36... Rd1+ {[%clk 0:00:01.8]} 37. Kg2 {[%clk 0:00:04.3]}
37... Bxf5 {[%clk 0:00:01.1]} 38. Rxh6+ {[%clk 0:00:03.8]} 1-0

[Event "Early-Titled-Tuesday-Blitz-October-24-2023"]
[Site "Chess.com"]
[Date "2023.10.24"]
[Round "1"]
[White "pinguino120"]
[Black "HajiyevKanan"]
[Result "0-1"]
[WhiteElo "2193"]
[BlackElo "2561"]
[TimeControl "180+1"]
[EndTime "8:07:41 PDT"]
[Termination "HajiyevKanan won by resignation"]

1. e4 {[%clk 0:02:59.1]} 1... c6 {[%clk 0:02:59.6]} 2. d4 {[%clk 0:02:59.2]}
2... d5 {[%clk 0:03:00.5]} 3. e5 {[%clk 0:02:59.8]} 3... a6 {[%clk 0:03:00.5]}
4. c4 {[%clk 0:02:50.9]} 4... Bf5 {[%clk 0:02:59.6]} 5. Nc3 {[%clk 0:02:50.5]}
5... e6 {[%clk 0:03:00.2]} 6. h4 {[%clk 0:02:49.3]} 6... h5 {[%clk 0:03:00.1]}
7. Bd3 {[%clk 0:02:47.8]} 7... Ne7 {[%clk 0:02:50.4]} 8. Bg5 {[%clk 0:02:44.8]}
8... Bxd3 {[%clk 0:02:42.9]} 9. Qxd3 {[%clk 0:02:44.3]} 9... Qb6 {[%clk
0:02:31.2]} 10. Nf3 {[%clk 0:02:39.8]} 10... Nd7 {[%clk 0:02:29.8]} 11. O-O
{[%clk 0:02:39.2]} 11... Ng6 {[%clk 0:02:12.3]} 12. a4 {[%clk 0:01:59.3]} 12...
Bb4 {[%clk 0:02:00.1]} 13. a5 {[%clk 0:01:26.8]} 13... Bxa5 {[%clk 0:01:27]} 14.
Rfb1 {[%clk 0:01:25.9]} 14... Bb4 {[%clk 0:01:14.8]} 15. Ra4 {[%clk 0:01:07.8]}
15... a5 {[%clk 0:00:23.5]} 16. c5 {[%clk 0:01:06.6]} 16... Qa6 {[%clk
0:00:23.7]} 17. Qxa6 {[%clk 0:00:59.5]} 17... Rxa6 {[%clk 0:00:24.6]} 18. Na2
{[%clk 0:00:59.6]} 18... f6 {[%clk 0:00:04.9]} 19. exf6 {[%clk 0:00:58.5]} 19...
gxf6 {[%clk 0:00:05.8]} 20. Be3 {[%clk 0:00:57.3]} 20... Ke7 {[%clk 0:00:03.2]}
21. Nxb4 {[%clk 0:00:57.2]} 21... axb4 {[%clk 0:00:04.1]} 22. Rxb4 {[%clk
0:00:54.8]} 22... b5 {[%clk 0:00:04.8]} 23. cxb6 {[%clk 0:00:54.6]} 23... Rxb6
{[%clk 0:00:05.3]} 24. Rxb6 {[%clk 0:00:54]} 24... Nxb6 {[%clk 0:00:06.2]} 25.
Bd2 {[%clk 0:00:47.2]} 25... Nc4 {[%clk 0:00:05.2]} 26. Bb4+ {[%clk 0:00:47.2]}
26... Kd7 {[%clk 0:00:06]} 27. b3 {[%clk 0:00:46.1]} 27... Nd6 {[%clk
0:00:04.9]} 28. Bc5 {[%clk 0:00:43.1]} 28... Ne4 {[%clk 0:00:04]} 29. Ra1 {[%clk
0:00:41.8]} 29... Nxc5 {[%clk 0:00:03.5]} 30. dxc5 {[%clk 0:00:42.7]} 30... Rc8
{[%clk 0:00:03.8]} 31. Nd4 {[%clk 0:00:41.8]} 31... Rc7 {[%clk 0:00:04.1]} 32.
b4 {[%clk 0:00:39.6]} 32... Nxh4 {[%clk 0:00:04.2]} 33. b5 {[%clk 0:00:37.9]}
33... cxb5 {[%clk 0:00:05.1]} 34. c6+ {[%clk 0:00:37.5]} 34... Ke7 {[%clk
0:00:04.1]} 35. Rc1 {[%clk 0:00:30.2]} 35... b4 {[%clk 0:00:04]} 36. Nb5 {[%clk
0:00:30.5]} 36... Rc8 {[%clk 0:00:04.7]} 37. c7 {[%clk 0:00:31]} 37... Kd7
{[%clk 0:00:04.8]} 38. Rb1 {[%clk 0:00:23]} 38... Nf5 {[%clk 0:00:05.4]} 39.
Rxb4 {[%clk 0:00:22.9]} 39... Nd6 {[%clk 0:00:06.2]} 40. Nxd6 {[%clk 0:00:20.2]}
40... Kxd6 {[%clk 0:00:07.1]} 41. Rh4 {[%clk 0:00:20]} 41... Rxc7 {[%clk
0:00:07.4]} 42. Rxh5 {[%clk 0:00:20.6]} 42... Rg7 {[%clk 0:00:08]} 43. Rh3
{[%clk 0:00:20.5]} 43... f5 {[%clk 0:00:08.6]} 44. Ra3 {[%clk 0:00:21]} 44...
Ke5 {[%clk 0:00:08.5]} 45. f3 {[%clk 0:00:21.4]} 45... d4 {[%clk 0:00:09.1]} 46.
Kf2 {[%clk 0:00:21.7]} 46... Rd7 {[%clk 0:00:08.8]} 47. Ra5+ {[%clk 0:00:21.9]}
47... Rd5 {[%clk 0:00:09.2]} 48. Ra3 {[%clk 0:00:22.4]} 48... f4 {[%clk
0:00:09.7]} 49. g3 {[%clk 0:00:22]} 49... fxg3+ {[%clk 0:00:10.2]} 50. Kxg3
{[%clk 0:00:22.9]} 50... d3 {[%clk 0:00:10.1]} 51. Kf2 {[%clk 0:00:23.4]} 51...
d2 {[%clk 0:00:09.1]} 52. Re3+ {[%clk 0:00:23.3]} 52... Kf5 {[%clk 0:00:09.1]}
0-1

[Event "Early-Titled-Tuesday-Blitz-October-24-2023"]
[Site "Chess.com"]
[Date "2023.10.24"]
[Round "1"]
[White "ShahxaibKhan"]
[Black "MatyChess1"]
[Result "0-1"]
[WhiteElo "2404"]
[BlackElo "2746"]
[TimeControl "180+1"]
[EndTime "8:07:45 PDT"]
[Termination "MatyChess1 won on time"]

1. e4 {[%clk 0:03:00.9]} 1... c6 {[%clk 0:02:58.3]} 2. d4 {[%clk 0:02:52]} 2...
d5 {[%clk 0:02:59.2]} 3. exd5 {[%clk 0:02:51.3]} 3... cxd5 {[%clk 0:02:59.2]} 4.
c4 {[%clk 0:02:52.2]} 4... Nf6 {[%clk 0:02:59.4]} 5. Nc3 {[%clk 0:02:52.5]} 5...
g6 {[%clk 0:02:59.9]} 6. Qb3 {[%clk 0:02:51.6]} 6... Bg7 {[%clk 0:02:56.9]} 7.
cxd5 {[%clk 0:02:50.8]} 7... O-O {[%clk 0:02:57.5]} 8. Be2 {[%clk 0:02:50.4]}
8... Nbd7 {[%clk 0:02:57.9]} 9. Bf3 {[%clk 0:02:50.6]} 9... Nb6 {[%clk
0:02:58.8]} 10. Nge2 {[%clk 0:02:49.2]} 10... Bf5 {[%clk 0:02:59.5]} 11. O-O
{[%clk 0:02:45.3]} 11... Bd3 {[%clk 0:02:59.2]} 12. Qd1 {[%clk 0:02:24.3]} 12...
Ba6 {[%clk 0:02:45]} 13. b4 {[%clk 0:02:04]} 13... Bc4 {[%clk 0:02:38.3]} 14. d6
{[%clk 0:01:55.4]} 14... Qxd6 {[%clk 0:02:36.9]} 15. Bxb7 {[%clk 0:01:54.3]}
15... Rab8 {[%clk 0:02:37.5]} 16. Bf4 {[%clk 0:01:51.3]} 16... Qxb4 {[%clk
0:02:32]} 17. Bxb8 {[%clk 0:01:46.8]} 17... Rxb8 {[%clk 0:02:32.1]} 18. Rb1
{[%clk 0:01:41.9]} 18... Qa3 {[%clk 0:02:26.5]} 19. Bf3 {[%clk 0:01:37.2]} 19...
Rd8 {[%clk 0:02:27.1]} 20. Qc1 {[%clk 0:01:29.8]} 20... Qa5 {[%clk 0:02:22.6]}
21. Rd1 {[%clk 0:01:24.7]} 21... h5 {[%clk 0:02:20.6]} 22. Qc2 {[%clk
0:01:21.8]} 22... Rc8 {[%clk 0:02:10.6]} 23. Qd2 {[%clk 0:00:59.9]} 23... Qf5
{[%clk 0:01:33.9]} 24. a4 {[%clk 0:00:50.8]} 24... Rd8 {[%clk 0:01:31.1]} 25. a5
{[%clk 0:00:48.2]} 25... Qxa5 {[%clk 0:01:29]} 26. Ra1 {[%clk 0:00:42.9]} 26...
Qb4 {[%clk 0:01:17.9]} 27. Rxa7 {[%clk 0:00:35.4]} 27... Ng4 {[%clk 0:01:16.6]}
28. Bxg4 {[%clk 0:00:26.3]} 28... hxg4 {[%clk 0:01:16.4]} 29. Rb1 {[%clk
0:00:26.5]} 29... Qd6 {[%clk 0:01:07.2]} 30. Qe3 {[%clk 0:00:15.1]} 30... Be6
{[%clk 0:00:26.7]} 31. Qc1 {[%clk 0:00:07.5]} 31... Rc8 {[%clk 0:00:24.9]} 32.
Qb2 {[%clk 0:00:06.4]} 32... Nc4 {[%clk 0:00:24.6]} 33. Qb4 {[%clk 0:00:05.9]}
33... Nd2 {[%clk 0:00:16.4]} 34. Qxd6 {[%clk 0:00:05.2]} 34... exd6 {[%clk
0:00:17.3]} 35. Rd1 {[%clk 0:00:05.2]} 35... Nb3 {[%clk 0:00:10.3]} 36. Ne4
{[%clk 0:00:04.7]} 36... Rc2 {[%clk 0:00:06.3]} 37. Nf4 {[%clk 0:00:03.7]} 37...
Bf5 {[%clk 0:00:02.1]} 38. Ng3 {[%clk 0:00:02.4]} 38... Nxd4 {[%clk 0:00:01.3]}
39. Ra8+ {[%clk 0:00:02.3]} 39... Kh7 {[%clk 0:00:01.4]} 40. Nxf5 {[%clk
0:00:02.7]} 40... Nxf5 {[%clk 0:00:02.3]} 41. g3 {[%clk 0:00:03]} 41... Bd4
{[%clk 0:00:02.8]} 42. Rf1 {[%clk 0:00:01.3]} 42... Be5 {[%clk 0:00:03.3]} 0-1